[Event "TOP 12F 2021"]
[Site "RENNES, France"]
[Date "2021.08.27"]
[Round "3.9"]
[White "Auvray, Juliette"]
[Black "Savina, Anastasia"]
[Result "0-1"]
[TimeControl "1H30 + 30 sec/coup"]
[WhiteElo "2004"]
[BlackElo "2336"]

1. e4 {[%clk 01:30:57]} {[%emt 00:00:02]} c5 {[%clk 01:30:52]} {[%emt
00:00:08]} 2. Nf3 {[%clk 01:31:22]} {[%emt 00:00:06]} Nc6 {[%clk 01:31:17]}
{[%emt 00:00:05]} 3. d4 {[%clk 01:31:43]} {[%emt 00:00:09]} cxd4 {[%clk
01:31:42]} {[%emt 00:00:05]} 4. Nxd4 {[%clk 01:32:05]} {[%emt 00:00:09]} Nf6
{[%clk 01:31:50]} {[%emt 00:00:22]} 5. Nc3 {[%clk 01:32:10]} {[%emt 00:00:25]}
e6 {[%clk 01:32:14]} {[%emt 00:00:06]} 6. Nxc6 {[%clk 01:30:44]} {[%emt
00:01:56]} bxc6 {[%clk 01:32:36]} {[%emt 00:00:08]} 7. e5 {[%clk 01:29:04]}
{[%emt 00:02:10]} Nd5 {[%clk 01:33:00]} {[%emt 00:00:05]} 8. Ne4 {[%clk
01:28:51]} {[%emt 00:00:43]} Qc7 {[%clk 01:33:09]} {[%emt 00:00:21]} 9. f4
{[%clk 01:27:22]} {[%emt 00:02:00]} Qb6 {[%clk 01:28:54]} {[%emt 00:04:44]} 10.
c4 {[%clk 01:23:35]} {[%emt 00:04:17]} Ne3 {[%clk 01:28:22]} {[%emt 00:01:02]}
11. Qd3 {[%clk 01:18:19]} {[%emt 00:05:46]} Nf5 {[%clk 01:28:23]} {[%emt
00:00:28]} 12. Bd2 {[%clk 01:07:22]} {[%emt 00:11:27]} c5 {[%clk 01:19:13]}
{[%emt 00:09:40]} 13. O-O-O {[%clk 01:00:41]} {[%emt 00:07:12]} Be7 {[%clk
01:11:18]} {[%emt 00:08:25]} 14. Bc3 {[%clk 00:58:08]} {[%emt 00:03:03]} O-O
{[%clk 01:07:07]} {[%emt 00:04:41]} 15. g4 {[%clk 00:53:55]} {[%emt 00:04:43]}
Nd4 {[%clk 01:00:31]} {[%emt 00:07:05]} 16. Qh3 {[%clk 00:38:25]} {[%emt
00:16:01]} d5 {[%clk 00:30:58]} {[%emt 00:30:02]} 17. Ng3 {[%clk 00:14:18]}
{[%emt 00:24:37]} dxc4 {[%clk 00:28:20]} {[%emt 00:03:08]} 18. Nh5 {[%clk
00:09:36]} {[%emt 00:05:12]} Qa6 {[%clk 00:20:24]} {[%emt 00:08:26]} 19. Kb1
{[%clk 00:05:59]} {[%emt 00:04:07]} Bb7 {[%clk 00:19:37]} {[%emt 00:01:17]} 20.
Bg2 {[%clk 00:06:01]} {[%emt 00:00:29]} Rab8 {[%clk 00:18:56]} {[%emt
00:01:11]} 21. f5 {[%clk 00:04:16]} {[%emt 00:02:15]} Bg5 {[%clk 00:10:47]}
{[%emt 00:08:38]} 22. Rhe1 {[%clk 00:02:47]} {[%emt 00:02:00]} Qa4 {[%clk
00:09:23]} {[%emt 00:01:53]} 23. Bxd4 {[%clk 00:02:15]} {[%emt 00:01:02]} cxd4
{[%clk 00:09:38]} {[%emt 00:00:16]} 24. Rxd4 {[%clk 00:02:03]} {[%emt
00:00:42]} Qb4 {[%clk 00:08:28]} {[%emt 00:01:40]} 25. Re2 {[%clk 00:01:59]}
{[%emt 00:00:34]} Rfd8 {[%clk 00:08:02]} {[%emt 00:00:55]} 26. Rxd8+ {[%clk
00:01:31]} {[%emt 00:00:57]} Rxd8 {[%clk 00:08:25]} {[%emt 00:00:07]} 27. a3
{[%clk 00:01:11]} {[%emt 00:00:50]} Qb3 {[%clk 00:06:58]} {[%emt 00:01:57]} 28.
Re1 {[%clk 00:01:06]} {[%emt 00:00:36]} Rd3 {[%clk 00:04:49]} {[%emt 00:02:38]}
29. Ng3 {[%clk 00:00:44]} {[%emt 00:00:53]} c3 {[%clk 00:04:59]} {[%emt
00:00:20]} 0-1

[Event "TOP 12F 2021"]
[Site "RENNES, France"]
[Date "2021.08.27"]
[Round "3.11"]
[White "Steil-Antoni, Fiona"]
[Black "Coriat, Caroline"]
[Result "1-0"]
[TimeControl "1H30 + 30 sec/coup"]
[WhiteElo "2153"]
[BlackElo "1784"]

1. e4 {[%clk 01:30:58]} {[%emt 00:00:02]} e6 {[%clk 01:30:56]} {[%emt
00:00:05]} 2. Nf3 {[%clk 01:31:21]} {[%emt 00:00:07]} d5 {[%clk 01:31:16]}
{[%emt 00:00:10]} 3. e5 {[%clk 01:31:44]} {[%emt 00:00:06]} c5 {[%clk
01:31:28]} {[%emt 00:00:19]} 4. b4 {[%clk 01:32:07]} {[%emt 00:00:07]} a6
{[%clk 01:27:25]} {[%emt 00:04:34]} 5. bxc5 {[%clk 01:31:56]} {[%emt 00:00:41]}
Bxc5 {[%clk 01:27:37]} {[%emt 00:00:18]} 6. d4 {[%clk 01:32:07]} {[%emt
00:00:18]} Bb6 {[%clk 01:21:57]} {[%emt 00:06:10]} 7. Bd3 {[%clk 01:31:43]}
{[%emt 00:00:53]} Nc6 {[%clk 01:21:51]} {[%emt 00:00:37]} 8. c3 {[%clk
01:31:58]} {[%emt 00:00:14]} Bd7 {[%clk 01:16:43]} {[%emt 00:05:39]} 9. h4
{[%clk 01:30:56]} {[%emt 00:01:32]} Na7 {[%clk 01:13:09]} {[%emt 00:04:04]} 10.
a4 {[%clk 01:30:13]} {[%emt 00:01:12]} Ba5 {[%clk 01:10:56]} {[%emt 00:02:43]}
11. Ng5 {[%clk 01:26:47]} {[%emt 00:03:56]} f5 {[%clk 01:00:12]} {[%emt
00:11:15]} 12. g4 {[%clk 01:18:29]} {[%emt 00:08:48]} h6 {[%clk 00:54:18]}
{[%emt 00:06:24]} 13. Nxe6 {[%clk 01:15:20]} {[%emt 00:03:39]} Bxe6 {[%clk
00:53:42]} {[%emt 00:01:07]} 14. gxf5 {[%clk 01:15:41]} {[%emt 00:00:08]} Qc7
{[%clk 00:52:20]} {[%emt 00:01:52]} 15. Kf1 {[%clk 01:05:20]} {[%emt 00:10:51]}
Bc8 {[%clk 00:41:30]} {[%emt 00:11:20]} 16. Bb2 {[%clk 00:52:07]} {[%emt
00:13:42]} b5 {[%clk 00:18:43]} {[%emt 00:23:18]} 17. Qh5+ {[%clk 00:49:28]}
{[%emt 00:03:08]} Kd8 {[%clk 00:18:41]} {[%emt 00:00:32]} 18. Rg1 {[%clk
00:48:01]} {[%emt 00:01:56]} bxa4 {[%clk 00:17:16]} {[%emt 00:01:56]} 19. Rg6
{[%clk 00:44:37]} {[%emt 00:03:53]} Nb5 {[%clk 00:14:44]} {[%emt 00:03:02]} 20.
Rxa4 {[%clk 00:43:18]} {[%emt 00:01:49]} Nxc3 {[%clk 00:10:02]} {[%emt
00:05:12]} 21. Rxa5 {[%clk 00:41:38]} {[%emt 00:02:10]} Nxb1 {[%clk 00:09:10]}
{[%emt 00:01:23]} 22. Rxd5+ {[%clk 00:40:56]} {[%emt 00:01:11]} Bd7 {[%clk
00:08:50]} {[%emt 00:00:50]} 23. Rgd6 {[%clk 00:37:18]} {[%emt 00:04:07]} Ne7
{[%clk 00:03:42]} {[%emt 00:05:38]} 24. Rxd7+ {[%clk 00:37:32]} {[%emt
00:00:17]} Qxd7 {[%clk 00:04:04]} {[%emt 00:00:08]} 25. Rxd7+ {[%clk 00:37:50]}
{[%emt 00:00:12]} Kxd7 {[%clk 00:04:33]} {[%emt 00:00:02]} 26. e6+ {[%clk
00:37:03]} {[%emt 00:01:16]} 1-0

[Event "TOP 12F 2021"]
[Site "RENNES, France"]
[Date "2021.08.27"]
[Round "3.12"]
[White "Parot de Sousa, Sophie"]
[Black "Thomas, Anysia"]
[Result "0-1"]
[TimeControl "1H30 + 30 sec/coup"]
[WhiteElo "1447"]
[BlackElo "2170"]

1. c4 {[%clk 01:30:57]} {[%emt 00:00:02]} g6 {[%clk 01:30:55]} {[%emt
00:00:05]} 2. Nc3 {[%clk 01:31:12]} {[%emt 00:00:15]} c5 {[%clk 01:31:20]}
{[%emt 00:00:05]} 3. g3 {[%clk 01:31:29]} {[%emt 00:00:13]} Bg7 {[%clk
01:31:45]} {[%emt 00:00:05]} 4. Bg2 {[%clk 01:30:59]} {[%emt 00:01:01]} Nc6
{[%clk 01:32:08]} {[%emt 00:00:06]} 5. Nf3 {[%clk 01:29:45]} {[%emt 00:01:44]}
e6 {[%clk 01:32:30]} {[%emt 00:00:08]} 6. O-O {[%clk 01:27:50]} {[%emt
00:02:25]} Nge7 {[%clk 01:32:53]} {[%emt 00:00:07]} 7. e3 {[%clk 01:18:48]}
{[%emt 00:09:33]} O-O {[%clk 01:31:44]} {[%emt 00:01:38]} 8. d4 {[%clk
01:14:04]} {[%emt 00:05:14]} cxd4 {[%clk 01:31:58]} {[%emt 00:00:17]} 9. Nxd4
{[%clk 01:13:45]} {[%emt 00:00:49]} d5 {[%clk 01:26:14]} {[%emt 00:06:14]} 10.
Nxc6 {[%clk 01:05:08]} {[%emt 00:09:06]} bxc6 {[%clk 01:26:28]} {[%emt
00:00:16]} 11. cxd5 {[%clk 01:04:33]} {[%emt 00:01:05]} cxd5 {[%clk 01:26:39]}
{[%emt 00:00:19]} 12. Bd2 {[%clk 00:54:20]} {[%emt 00:10:43]} Ba6 {[%clk
01:25:27]} {[%emt 00:01:42]} 13. Re1 {[%clk 00:53:43]} {[%emt 00:01:08]} Rb8
{[%clk 01:25:40]} {[%emt 00:00:16]} 14. b3 {[%clk 00:45:20]} {[%emt 00:08:53]}
Nc6 {[%clk 01:22:27]} {[%emt 00:03:42]} 15. Bf1 {[%clk 00:37:30]} {[%emt
00:08:21]} Bxf1 {[%clk 01:21:53]} {[%emt 00:01:03]} 16. Rxf1 {[%clk 00:32:26]}
{[%emt 00:05:35]} Qd7 {[%clk 01:19:14]} {[%emt 00:03:08]} 17. Rb1 {[%clk
00:22:40]} {[%emt 00:10:17]} Rfd8 {[%clk 01:13:58]} {[%emt 00:05:45]} 18. Na4
{[%clk 00:19:03]} {[%emt 00:04:07]} e5 {[%clk 01:13:34]} {[%emt 00:00:55]} 19.
Kg2 {[%clk 00:16:30]} {[%emt 00:03:04]} e4 {[%clk 01:11:43]} {[%emt 00:02:21]}
20. f3 {[%clk 00:09:04]} {[%emt 00:07:57]} Ne5 {[%clk 01:09:05]} {[%emt
00:03:08]} 21. fxe4 {[%clk 00:05:12]} {[%emt 00:04:22]} dxe4 {[%clk 01:09:23]}
{[%emt 00:00:12]} 22. Bc3 {[%clk 00:04:48]} {[%emt 00:00:55]} Qg4 {[%clk
00:55:30]} {[%emt 00:14:23]} 23. Qxg4 {[%clk 00:02:16]} {[%emt 00:03:02]} Nxg4
{[%clk 00:55:54]} {[%emt 00:00:05]} 24. Rf4 {[%clk 00:02:04]} {[%emt 00:00:42]}
Nxe3+ {[%clk 00:55:58]} {[%emt 00:00:26]} 25. Kh1 {[%clk 00:00:39]} {[%emt
00:01:55]} f5 {[%clk 00:53:55]} {[%emt 00:02:33]} 26. Bxg7 {[%clk 00:00:48]}
{[%emt 00:00:21]} Kxg7 {[%clk 00:54:22]} {[%emt 00:00:02]} 27. Nc5 {[%clk
00:00:39]} {[%emt 00:00:40]} Rd2 {[%clk 00:52:32]} {[%emt 00:02:19]} 28. a4
{[%clk 00:00:34]} {[%emt 00:00:35]} g5 {[%clk 00:50:01]} {[%emt 00:03:01]} 29.
Nxe4 {[%clk 00:00:47]} {[%emt 00:00:17]} fxe4 {[%clk 00:50:02]} {[%emt
00:00:29]} 30. Rxe4 {[%clk 00:01:12]} {[%emt 00:00:05]} Nd5 {[%clk 00:49:54]}
{[%emt 00:00:38]} 31. Re5 {[%clk 00:01:12]} {[%emt 00:00:31]} h6 {[%clk
00:50:12]} {[%emt 00:00:11]} 32. Rc1 {[%clk 00:00:31]} {[%emt 00:01:11]} Rxb3
{[%clk 00:50:23]} {[%emt 00:00:19]} 33. Rce1 {[%clk 00:00:37]} {[%emt
00:00:24]} Rbd3 {[%clk 00:50:12]} {[%emt 00:00:40]} 34. a5 {[%clk 00:00:35]}
{[%emt 00:00:33]} Rd1 {[%clk 00:50:25]} {[%emt 00:00:17]} 35. a6 {[%clk
00:00:46]} {[%emt 00:00:19]} Rxe1+ {[%clk 00:50:22]} {[%emt 00:00:34]} 36. Rxe1
{[%clk 00:01:10]} {[%emt 00:00:05]} Ne3 {[%clk 00:49:31]} {[%emt 00:01:20]} 37.
Kg1 {[%clk 00:00:35]} {[%emt 00:01:06]} Rd1 {[%clk 00:49:44]} {[%emt 00:00:17]}
38. Rxd1 {[%clk 00:01:02]} {[%emt 00:00:03]} Nxd1 {[%clk 00:50:09]} {[%emt
00:00:04]} 39. Kf1 {[%clk 00:01:25]} {[%emt 00:00:08]} Ne3+ {[%clk 00:50:16]}
{[%emt 00:00:22]} 40. Ke2 {[%clk 00:01:51]} {[%emt 00:00:04]} Nd5 {[%clk
00:50:41]} {[%emt 00:00:05]} 0-1

[Event "TOP 12F 2021"]
[Site "RENNES, France"]
[Date "2021.08.27"]
[Round "3.13"]
[White "Sebag, Marie"]
[Black "Paehtz, Elisabeth"]
[Result "1/2-1/2"]
[TimeControl "1H30 + 30 sec/coup"]
[WhiteElo "2447"]
[BlackElo "2466"]

1. e4 {[%clk 01:27:11]} {[%emt 00:03:47]} c5 {[%clk 01:30:57]} {[%emt
00:00:04]} 2. Nf3 {[%clk 01:27:37]} {[%emt 00:00:04]} d6 {[%clk 01:31:23]}
{[%emt 00:00:04]} 3. Bb5+ {[%clk 01:28:01]} {[%emt 00:00:06]} Bd7 {[%clk
01:31:49]} {[%emt 00:00:04]} 4. Bxd7+ {[%clk 01:27:44]} {[%emt 00:00:47]} Nxd7
{[%clk 01:32:14]} {[%emt 00:00:05]} 5. O-O {[%clk 01:24:38]} {[%emt 00:03:36]}
Ngf6 {[%clk 01:32:36]} {[%emt 00:00:07]} 6. Qe2 {[%clk 01:24:50]} {[%emt
00:00:18]} e6 {[%clk 01:32:24]} {[%emt 00:00:42]} 7. d4 {[%clk 01:20:17]}
{[%emt 00:05:03]} cxd4 {[%clk 01:31:51]} {[%emt 00:01:03]} 8. Nxd4 {[%clk
01:20:42]} {[%emt 00:00:05]} Qa5 {[%clk 01:30:05]} {[%emt 00:02:16]} 9. Re1
{[%clk 00:58:22]} {[%emt 00:22:50]} Rc8 {[%clk 01:28:13]} {[%emt 00:02:22]} 10.
b3 {[%clk 00:55:13]} {[%emt 00:03:40]} a6 {[%clk 01:17:59]} {[%emt 00:10:44]}
11. c4 {[%clk 00:54:36]} {[%emt 00:01:07]} Be7 {[%clk 01:10:05]} {[%emt
00:08:23]} 12. Bb2 {[%clk 00:52:57]} {[%emt 00:02:08]} O-O {[%clk 01:06:19]}
{[%emt 00:04:18]} 13. Nc3 {[%clk 00:46:53]} {[%emt 00:06:33]} Rfe8 {[%clk
01:06:16]} {[%emt 00:00:33]} 14. Rac1 {[%clk 00:44:11]} {[%emt 00:03:12]} Bf8
{[%clk 01:06:22]} {[%emt 00:00:24]} 15. Red1 {[%clk 00:41:38]} {[%emt
00:03:02]} g6 {[%clk 01:05:17]} {[%emt 00:01:37]} 16. Qd2 {[%clk 00:33:31]}
{[%emt 00:08:36]} Qh5 {[%clk 01:03:46]} {[%emt 00:02:01]} 17. Qe2 {[%clk
00:33:49]} {[%emt 00:00:12]} Qa5 {[%clk 01:01:05]} {[%emt 00:03:11]} 18. Qd2
{[%clk 00:32:20]} {[%emt 00:02:00]} Qh5 {[%clk 00:53:26]} {[%emt 00:08:09]} 19.
Qe2 {[%clk 00:32:42]} {[%emt 00:00:07]} Qa5 {[%clk 00:52:53]} {[%emt 00:01:03]}
1/2-1/2

[Event "TOP 12F 2021"]
[Site "RENNES, France"]
[Date "2021.08.27"]
[Round "3.14"]
[White "Skripchenko, Almira"]
[Black "Javakhishvili, Lela"]
[Result "1/2-1/2"]
[TimeControl "1H30 + 30 sec/coup"]
[WhiteElo "2411"]
[BlackElo "2470"]

1. e4 {[%clk 01:30:09]} {[%emt 00:00:50]} c5 {[%clk 01:30:45]} {[%emt
00:00:16]} 2. Nf3 {[%clk 01:30:29]} {[%emt 00:00:10]} e6 {[%clk 01:31:09]}
{[%emt 00:00:06]} 3. c3 {[%clk 01:30:39]} {[%emt 00:00:20]} Nf6 {[%clk
01:31:19]} {[%emt 00:00:19]} 4. e5 {[%clk 01:31:03]} {[%emt 00:00:06]} Nd5
{[%clk 01:31:45]} {[%emt 00:00:04]} 5. d4 {[%clk 01:31:28]} {[%emt 00:00:05]}
cxd4 {[%clk 01:32:11]} {[%emt 00:00:05]} 6. cxd4 {[%clk 01:31:55]} {[%emt
00:00:03]} d6 {[%clk 01:32:27]} {[%emt 00:00:14]} 7. Bc4 {[%clk 01:31:47]}
{[%emt 00:00:37]} Nb6 {[%clk 01:32:43]} {[%emt 00:00:14]} 8. Bd3 {[%clk
01:32:10]} {[%emt 00:00:07]} Nc6 {[%clk 01:33:09]} {[%emt 00:00:05]} 9. Qe2
{[%clk 01:30:43]} {[%emt 00:01:56]} Nb4 {[%clk 01:31:08]} {[%emt 00:02:32]} 10.
Be4 {[%clk 01:24:28]} {[%emt 00:06:44]} d5 {[%clk 01:30:57]} {[%emt 00:00:41]}
11. Bd3 {[%clk 01:23:12]} {[%emt 00:01:46]} Bd7 {[%clk 01:31:17]} {[%emt
00:00:10]} 12. Nc3 {[%clk 01:23:14]} {[%emt 00:00:29]} Nxd3+ {[%clk 01:28:12]}
{[%emt 00:03:36]} 13. Qxd3 {[%clk 01:23:38]} {[%emt 00:00:05]} Be7 {[%clk
01:28:25]} {[%emt 00:00:17]} 14. O-O {[%clk 01:23:47]} {[%emt 00:00:21]} Rc8
{[%clk 01:28:15]} {[%emt 00:00:41]} 15. b3 {[%clk 01:16:33]} {[%emt 00:07:44]}
O-O {[%clk 01:27:35]} {[%emt 00:01:10]} 16. Bb2 {[%clk 01:16:49]} {[%emt
00:00:14]} a6 {[%clk 01:25:01]} {[%emt 00:03:05]} 17. Rfc1 {[%clk 01:14:31]}
{[%emt 00:02:48]} Rc7 {[%clk 01:23:14]} {[%emt 00:02:17]} 18. Rc2 {[%clk
01:14:14]} {[%emt 00:00:48]} Qb8 {[%clk 01:22:35]} {[%emt 00:01:08]} 19. Rac1
{[%clk 01:14:26]} {[%emt 00:00:18]} Rfc8 {[%clk 01:21:52]} {[%emt 00:01:14]} 20.
h4 {[%clk 01:10:39]} {[%emt 00:04:17]} h6 {[%clk 01:16:29]} {[%emt 00:05:53]}
21. g3 {[%clk 01:06:10]} {[%emt 00:04:59]} Be8 {[%clk 01:15:16]} {[%emt
00:01:43]} 22. Kg2 {[%clk 01:06:23]} {[%emt 00:00:16]} Na8 {[%clk 01:14:34]}
{[%emt 00:01:13]} 23. Ne1 {[%clk 00:57:17]} {[%emt 00:09:36]} b5 {[%clk
01:14:21]} {[%emt 00:00:44]} 24. Nd1 {[%clk 00:53:09]} {[%emt 00:04:38]} Rxc2
{[%clk 01:13:57]} {[%emt 00:00:54]} 25. Rxc2 {[%clk 00:52:40]} {[%emt
00:00:59]} Rxc2 {[%clk 01:12:25]} {[%emt 00:02:02]} 26. Nxc2 {[%clk 00:50:52]}
{[%emt 00:02:18]} a5 {[%clk 01:10:40]} {[%emt 00:02:14]} 27. Bc1 {[%clk
00:46:40]} {[%emt 00:04:43]} Nc7 {[%clk 01:06:18]} {[%emt 00:04:52]} 28. Bb2
{[%clk 00:37:38]} {[%emt 00:09:31]} b4 {[%clk 01:02:53]} {[%emt 00:03:55]} 29.
a4 {[%clk 00:35:20]} {[%emt 00:02:48]} bxa3 {[%clk 00:59:41]} {[%emt 00:03:42]}
30. Bxa3 {[%clk 00:33:54]} {[%emt 00:01:56]} Bxa3 {[%clk 00:59:06]} {[%emt
00:01:06]} 31. Nxa3 {[%clk 00:34:18]} {[%emt 00:00:06]} a4 {[%clk 00:57:06]}
{[%emt 00:02:30]} 1/2-1/2

[Event "TOP 12F 2021"]
[Site "RENNES, France"]
[Date "2021.08.27"]
[Round "3.15"]
[White "Dornbusch, Tatiana"]
[Black "Maisuradze, Nino"]
[Result "1-0"]
[TimeControl "1H30 + 30 sec/coup"]
[WhiteElo "2249"]
[BlackElo "2245"]

1. d4 {[%clk 01:30:50]} {[%emt 00:00:10]} Nf6 {[%clk 01:30:57]} {[%emt
00:00:03]} 2. Nf3 {[%clk 01:31:02]} {[%emt 00:00:18]} e6 {[%clk 01:31:24]}
{[%emt 00:00:03]} 3. g3 {[%clk 01:30:07]} {[%emt 00:01:24]} d5 {[%clk
01:29:07]} {[%emt 00:02:48]} 4. Bg2 {[%clk 01:30:01]} {[%emt 00:00:36]} Nbd7
{[%clk 01:26:24]} {[%emt 00:03:14]} 5. O-O {[%clk 01:27:47]} {[%emt 00:02:43]}
b5 {[%clk 01:23:45]} {[%emt 00:03:09]} 6. a4 {[%clk 01:26:29]} {[%emt
00:01:48]} b4 {[%clk 01:23:59]} {[%emt 00:00:16]} 7. c4 {[%clk 01:25:43]}
{[%emt 00:01:15]} bxc3 {[%clk 01:23:48]} {[%emt 00:00:42]} 8. Nxc3 {[%clk
01:24:58]} {[%emt 00:01:15]} c5 {[%clk 01:18:35]} {[%emt 00:05:44]} 9. Bf4
{[%clk 01:20:18]} {[%emt 00:05:08]} Ba6 {[%clk 01:07:28]} {[%emt 00:11:38]} 10.
Re1 {[%clk 01:14:56]} {[%emt 00:05:51]} Nh5 {[%clk 01:01:39]} {[%emt 00:06:20]}
11. Bg5 {[%clk 01:01:27]} {[%emt 00:13:59]} f6 {[%clk 00:57:57]} {[%emt
00:04:12]} 12. Bd2 {[%clk 00:52:22]} {[%emt 00:09:34]} g6 {[%clk 00:12:40]}
{[%emt 00:45:49]} 13. e4 {[%clk 00:49:04]} {[%emt 00:03:47]} dxe4 {[%clk
00:12:17]} {[%emt 00:00:53]} 14. Nxe4 {[%clk 00:45:59]} {[%emt 00:03:36]} Ng7
{[%clk 00:06:53]} {[%emt 00:05:54]} 15. d5 {[%clk 00:39:40]} {[%emt 00:06:48]}
e5 {[%clk 00:06:51]} {[%emt 00:00:32]} 16. Bc3 {[%clk 00:38:42]} {[%emt
00:01:28]} Kf7 {[%clk 00:01:30]} {[%emt 00:05:51]} 17. d6 {[%clk 00:29:09]}
{[%emt 00:10:03]} Nf5 {[%clk 00:01:43]} {[%emt 00:00:17]} 18. Neg5+ {[%clk
00:25:43]} {[%emt 00:03:56]} fxg5 {[%clk 00:01:52]} {[%emt 00:00:22]} 19. Qd5+
{[%clk 00:26:02]} {[%emt 00:00:10]} Kg7 {[%clk 00:01:49]} {[%emt 00:00:34]} 20.
Nxe5 {[%clk 00:25:53]} {[%emt 00:00:39]} Nb6 {[%clk 00:00:40]} {[%emt
00:01:39]} 21. Nc6+ {[%clk 00:20:34]} {[%emt 00:05:49]} Nd4 {[%clk 00:00:48]}
{[%emt 00:00:23]} 22. Qe5+ {[%clk 00:14:51]} {[%emt 00:06:13]} Qf6 {[%clk
00:01:04]} {[%emt 00:00:13]} 23. Qxf6+ {[%clk 00:15:09]} {[%emt 00:00:12]} Kxf6
{[%clk 00:01:33]} {[%emt 00:00:01]} 24. Nxd4 {[%clk 00:15:18]} {[%emt
00:00:21]} cxd4 {[%clk 00:00:41]} {[%emt 00:01:22]} 25. Bxd4+ {[%clk 00:15:36]}
{[%emt 00:00:12]} Kf5 {[%clk 00:00:38]} {[%emt 00:00:33]} 26. Bxh8 {[%clk
00:11:12]} {[%emt 00:04:53]} Bxd6 {[%clk 00:00:37]} {[%emt 00:00:31]} 27. Bxa8
{[%clk 00:11:19]} {[%emt 00:00:23]} Nxa8 {[%clk 00:01:06]} {[%emt 00:00:01]} 28.
g4+ {[%clk 00:09:08]} {[%emt 00:02:41]} 1-0

[Event "TOP 12F 2021"]
[Site "RENNES, France"]
[Date "2021.08.27"]
[Round "3.16"]
[White "Fischer, Julie"]
[Black "Leconte, Maria"]
[Result "1/2-1/2"]
[TimeControl "1H30 + 30 sec/coup"]
[WhiteElo "2073"]
[BlackElo "2232"]

1. e4 {[%clk 01:30:57]} {[%emt 00:00:02]} c6 {[%clk 01:30:50]} {[%emt
00:00:10]} 2. d4 {[%clk 01:31:14]} {[%emt 00:00:13]} d5 {[%clk 01:31:14]}
{[%emt 00:00:05]} 3. exd5 {[%clk 01:31:39]} {[%emt 00:00:06]} cxd5 {[%clk
01:31:39]} {[%emt 00:00:04]} 4. Bd3 {[%clk 01:32:02]} {[%emt 00:00:07]} Nc6
{[%clk 01:32:03]} {[%emt 00:00:06]} 5. c3 {[%clk 01:32:29]} {[%emt 00:00:04]}
Nf6 {[%clk 01:32:22]} {[%emt 00:00:10]} 6. Bf4 {[%clk 01:32:38]} {[%emt
00:00:22]} Bg4 {[%clk 01:32:37]} {[%emt 00:00:15]} 7. Qb3 {[%clk 01:32:57]}
{[%emt 00:00:10]} Qd7 {[%clk 01:32:46]} {[%emt 00:00:21]} 8. h3 {[%clk
01:32:00]} {[%emt 00:01:27]} Bh5 {[%clk 01:29:52]} {[%emt 00:03:24]} 9. Nd2
{[%clk 01:30:46]} {[%emt 00:01:44]} e6 {[%clk 01:24:20]} {[%emt 00:06:02]} 10.
Ngf3 {[%clk 01:29:53]} {[%emt 00:01:23]} Bd6 {[%clk 01:23:48]} {[%emt
00:01:02]} 11. Bxd6 {[%clk 01:21:56]} {[%emt 00:08:25]} Qxd6 {[%clk 01:24:08]}
{[%emt 00:00:12]} 12. Qxb7 {[%clk 01:19:58]} {[%emt 00:02:28]} Rb8 {[%clk
01:24:09]} {[%emt 00:00:29]} 13. Qa6 {[%clk 01:20:17]} {[%emt 00:00:12]} O-O
{[%clk 01:24:20]} {[%emt 00:00:19]} 14. O-O {[%clk 01:11:54]} {[%emt 00:08:54]}
Rb6 {[%clk 01:22:50]} {[%emt 00:01:59]} 15. Qa3 {[%clk 01:07:25]} {[%emt
00:04:58]} Qxa3 {[%clk 00:45:21]} {[%emt 00:38:00]} 16. bxa3 {[%clk 01:07:48]}
{[%emt 00:00:07]} Bxf3 {[%clk 00:45:16]} {[%emt 00:00:35]} 17. Nxf3 {[%clk
01:08:06]} {[%emt 00:00:11]} Rc8 {[%clk 00:42:20]} {[%emt 00:03:26]} 18. Rab1
{[%clk 01:01:41]} {[%emt 00:06:55]} Nd7 {[%clk 00:32:49]} {[%emt 00:10:02]} 19.
Rb5 {[%clk 00:56:17]} {[%emt 00:05:54]} Nd8 {[%clk 00:22:08]} {[%emt 00:11:11]}
20. Rc1 {[%clk 00:54:14]} {[%emt 00:02:32]} Kf8 {[%clk 00:21:53]} {[%emt
00:00:46]} 21. Kf1 {[%clk 00:53:43]} {[%emt 00:01:01]} Nb7 {[%clk 00:21:05]}
{[%emt 00:01:18]} 22. Ke1 {[%clk 00:47:47]} {[%emt 00:06:25]} Nd6 {[%clk
00:21:06]} {[%emt 00:00:30]} 23. Rb3 {[%clk 00:45:35]} {[%emt 00:02:42]} Ke7
{[%clk 00:19:24]} {[%emt 00:02:12]} 1/2-1/2